Workbook

Sheet Onkostendeclaratie
A1: BEDRIJFSNAAM
A2: ONKOSTENDECLARATIE
B4: WERKNEMER: | C4: Pascaline Overeem | G4: GEAUTORISEERD DOOR:
B5: AFDELING: | C5: Verkoop
B6: WEEKEINDE: | C6: 2013-03-07 | G6: DATUM:
B7: KILOMETERTARIEF: | C7: € 0.67
C9: =UPPER(TEXT(C10,"dddd")) -> VRIJDAG | D9: =UPPER(TEXT(D10,"dddd")) -> ZATERDAG | E9: ZONDAG | F9: MAANDAG | G9: DINSDAG | H9: WOENSDAG | I9: DONDERDAG
B10: VERVOER | C10: =WeekEindigendOp-6 -> 2013-03-01 | D10: =WeekEindigendOp-5 -> 2013-03-02 | E10: =WeekEindigendOp-4 -> 2013-03-03 | F10: =WeekEindigendOp-3 -> 2013-03-04 | G10: =WeekEindigendOp-2 -> 2013-03-05 | H10: =WeekEindigendOp-1 -> 2013-03-06 | I10: =WeekEindigendOp -> 2013-03-07 | J10: TOTAAL
B11: Afgelegde kilometers | C11: 145 | J11: =SUM(vervoer[[#This Row],[Dag 1]:[Dag 7]]) -> 145
B12: Kilometervergoeding | C12: =C11*Kilometervergoeding -> € 97.15 | D12: € 0.00 | E12: € 0.00 | F12: € 0.00 | G12: € 0.00 | H12: € 0.00 | I12: € 0.00 | J12: =SUM(vervoer[[#This Row],[Dag 1]:[Dag 7]]) -> € 97.15
B13: Parkeergeld en tol | F13: € 17.00 | J13: =SUM(vervoer[[#This Row],[Dag 1]:[Dag 7]]) -> € 17.00
B14: Autohuur | C14: € 79.00 | F14: € 79.00 | J14: =SUM(vervoer[[#This Row],[Dag 1]:[Dag 7]]) -> € 158.00
B15: Taxi/limo | J15: =SUM(vervoer[[#This Row],[Dag 1]:[Dag 7]]) -> € 0.00
B16: Overige (trein of bus) | J16: =SUM(vervoer[[#This Row],[Dag 1]:[Dag 7]]) -> € 0.00
B17: Vliegtickets | F17: € 235.00 | J17: =SUM(vervoer[[#This Row],[Dag 1]:[Dag 7]]) -> € 235.00
B18: TOTAAL | C18: =SUBTOTAL(109,C12:C17) -> € 176.15 | D18: =SUBTOTAL(109,D12:D17) -> € 0.00 | F18: € 331.00 | G18: € 0.00 | H18: € 0.00 | I18: € 0.00 | J18: € 507.15
B20: ACCOMMODATIE EN MAALTIJDEN
B21: Accommodatie | C21: € 145.00 | J21: =SUM(OvernachtingenMaaltijden[[#This Row],[Dag 1]:[Dag 7]]) -> € 145.00
B22: Ontbijt | C22: € 11.49 | J22: =SUM(OvernachtingenMaaltijden[[#This Row],[Dag 1]:[Dag 7]]) -> € 11.49
B23: Lunch | C23: € 12.00 | J23: =SUM(OvernachtingenMaaltijden[[#This Row],[Dag 1]:[Dag 7]]) -> € 12.00
B24: Diner | C24: € 17.00 | J24: =SUM(OvernachtingenMaaltijden[[#This Row],[Dag 1]:[Dag 7]]) -> € 17.00
B25: Snack | C25: =C24*Kilometervergoeding -> € 11.39 | J25: =SUM(OvernachtingenMaaltijden[[#This Row],[Dag 1]:[Dag 7]]) -> € 11.39
B26: Subtotaal maaltijden | C26: =SUM(C22:C24) -> € 40.49 | D26: =SUM(D22:D24) -> € 0.00 | E26: € 0.00 | F26: € 0.00 | G26: € 0.00 | H26: € 0.00 | I26: € 0.00 | J26: =SUM(OvernachtingenMaaltijden[[#This Row],[Dag 1]:[Dag 7]]) -> € 40.49
B27: TOTAAL | C27: =SUBTOTAL(109,C21,C26) -> € 185.49 | D27: =SUBTOTAL(109,D21,D26) -> € 0.00 | E27: € 0.00 | F27: € 0.00 | G27: € 0.00 | H27: € 0.00 | I27: € 0.00 | J27: € 185.49
B29: DIVERSEN
B30: Benodigdheden | J30: =SUM(Diversen[[#This Row],[Dag 1]:[Dag 7]]) -> € 0.00
B31: Apparatuur | J31: =SUM(Diversen[[#This Row],[Dag 1]:[Dag 7]]) -> € 0.00
B32: Telefoon, fax, internet | J32: =SUM(Diversen[[#This Row],[Dag 1]:[Dag 7]]) -> € 0.00
B33: Overige | J33: =SUM(Diversen[[#This Row],[Dag 1]:[Dag 7]]) -> € 0.00
B34: Entertainment* | F34: € 199.00 | J34: =SUM(Diversen[[#This Row],[Dag 1]:[Dag 7]]) -> € 199.00
B35: TOTAAL | C35: =SUBTOTAL(109,Diversen[Dag 1]) -> € 0.00 | D35: =SUBTOTAL(109,Diversen[Dag 2]) -> € 0.00 | E35: =SUBTOTAL(109,Diversen[Dag 3]) -> € 0.00 | F35: =SUBTOTAL(109,Diversen[Dag 4]) -> € 199.00 | G35: =SUBTOTAL(109,Diversen[Dag 5]) -> € 0.00 | H35: =SUBTOTAL(109,Diversen[Dag 6]) -> € 0.00 | I35: =SUBTOTAL(109,Diversen[Dag 7]) -> € 0.00 | J35: =SUBTOTAL(109,Diversen[Totaal]) -> € 199.00
B37: EINDTOTAAL | C37: =SUM(Diversen[[#Totals],[Dag 1]],OvernachtingenMaaltijden[[#Totals],[Dag 1]],vervoer[[#Totals],[Dag 1]]) -> € 361.64 | D37: =SUM(Diversen[[#Totals],[Dag 2]],OvernachtingenMaaltijden[[#Totals],[Dag 2]],vervoer[[#Totals],[Dag 2]]) -> € 0.00 | E37: =SUM(Diversen[[#Totals],[Dag 3]],OvernachtingenMaaltijden[[#Totals],[Dag 3]],vervoer[[#Totals],[Dag 3]]) -> € 0.00 | F37: =SUM(Diversen[[#Totals],[Dag 4]],OvernachtingenMaaltijden[[#Totals],[Dag 4]],vervoer[[#Totals],[Dag 4]]) -> € 530.00 | G37: =SUM(Diversen[[#Totals],[Dag 5]],OvernachtingenMaaltijden[[#Totals],[Dag 5]],vervoer[[#Totals],[Dag 5]]) -> € 0.00 | H37: =SUM(Diversen[[#Totals],[Dag 6]],OvernachtingenMaaltijden[[#Totals],[Dag 6]],vervoer[[#Totals],[Dag 6]]) -> € 0.00 | I37: =SUM(Diversen[[#Totals],[Dag 7]],OvernachtingenMaaltijden[[#Totals],[Dag 7]],vervoer[[#Totals],[Dag 7]]) -> € 0.00 | J37: =SUM(Diversen[[#Totals],[Totaal]],OvernachtingenMaaltijden[[#Totals],[Totaal]],vervoer[[#Totals],[Totaal]]) -> € 891.64
J39: TOTALE KOSTEN
B40: *Zakelijk doeleinde van items van het type Entertainment en Overige: | J40: =SUM(J18,J27,J35) -> € 891.64
J41: VOORSCHOTTEN
J43: TOTALE VERGOEDING
J44: =J40-J42 -> € 891.64
J45: Voeg alle ontvangstbewijzen toe.
